fUSD/lending_fUSD_20241002
["ID","MTS","AMOUNT","RATE_DAILY","PERIOD"]
[339673481,1727830238996,-200.0,0.00015,2]
[339673482,1727830239005,-200.0,0.00015,2]
[339673483,1727830239015,-200.0,0.00015,2]
[339673484,1727830239024,-150.0,0.00015,15]
[339673485,1727830239033,-692.899999,0.00015,2]
[339673486,1727830239042,-300.0,0.00015068,2]
[339673487,1727830239052,-150.0,0.00015141,2]
[339673488,1727830239062,-278.24,0.00015153,2]
[339673489,1727830239071,-220.5,0.00015245,2]
[339673490,1727830239081,-150.0,0.00015501,2]
[339673491,1727830239090,-200.0,0.000157,3]
[339673492,1727830239099,-150.0,0.00015862,2]
[339673493,1727830239109,-150.0,0.00016222,2]
[339673494,1727830239118,-300.0,0.00016438,2]
[339673495,1727830239128,-211.34,0.00016473,2]
[339673496,1727830239137,-1000.0,0.00016581,2]
[339673497,1727830239147,-150.0,0.00016583,2]
[339673498,1727830239157,-200.0,0.000167,3]
[339673499,1727830239166,-150.0,0.00016943,2]
[339673500,1727830239176,-2329.22088665,0.00017121,2]
[339673501,1727830239185,-150.0,0.00017304,2]
[339673502,1727830239194,-278.24,0.00017417,2]
[339673503,1727830239204,-150.0,0.00017664,2]
[339673504,1727830239213,-200.0,0.000177,4]
[339673505,1727830239222,-420.58,0.000179,7]
[339673506,1727830239231,-211.34,0.0001797,2]
[339673507,1727830239241,-150.0,0.00018025,2]
[339673508,1727830239251,-1000.0,0.00018239,2]
[339673509,1727830239261,-1437.0,0.000183,2]
[339673510,1727830239271,-150.0,0.00018385,2]
[339673511,1727830239280,-200.0,0.000187,5]
[339673512,1727830239290,-150.0,0.00018746,2]
[339673513,1727830239300,-150.0,0.00019106,2]
[339673514,1727830239310,-169.83,0.0001933,2]
[339673515,1727830239320,-150.0,0.00019467,2]
[339673516,1727830239329,-278.24,0.0001968,2]
[339673517,1727830239339,-856.0,0.0001969,2]
[339673518,1727830239348,-200.0,0.000197,6]
[339673519,1727830239357,-150.0,0.00019827,2]
[339673520,1727830239366,-10000.0,0.00019857,2]
[339673521,1727830239376,-1000.0,0.00019897,2]
[339673522,1727830239385,-3000.0,0.000199,7]
[339673523,1727830239394,-160.98803554,0.00019973,2]
[339673524,1727830239404,-500.0,0.00019973,2]
[339673525,1727830239413,-201.74828508,0.00019973,2]
[339673526,1727830239423,-636.21256583,0.0002,2]
[339673527,1727830239433,-34259.66690583,0.0002,2]
[339673528,1727830239442,-247.0707475,0.0002,2]
[339673529,1727830239452,-150.0,0.00020188,2]
[339673530,1727830239462,-2329.22088665,0.00020233,2]
[339673531,1727830239472,-150.0,0.00020548,2]
[339673532,1727830239482,-200.0,0.000207,7]
[339673533,1727830239492,-200.0,0.000217,7]
[339673534,1727830239502,-5869.0,0.00021772,2]
[339673535,1727830239511,-13496.0,0.00021772,2]
[339673536,1727830239521,-1147.0,0.00021772,2]
[339673537,1727830239531,-152.368,0.00021772,2]
[339673538,1727830239541,-1865.58,0.00021918,2]
[339673539,1727830239550,-278.24,0.00021944,2]
[339673540,1727830239561,-1000.0,0.00022466,2]
[339673541,1727830239570,-200.0,0.000227,8]
[339673542,1727830239580,-350.48,0.000229,14]
[339673543,1727830239591,-731.632,0.00023308,3]
[339673544,1727830239601,-164.214,0.00023308,3]
[339673545,1727830239612,-2329.22088665,0.00023344,2]
[339673546,1727830239624,-165.7,0.00023693,2]
[339673547,1727830239634,-200.0,0.000237,9]
[339673548,1727830239644,-600.00000006,0.00024,40]
[339673549,1727830239656,-278.24,0.00024208,2]
[339673550,1727830239666,-200.0,0.000247,10]
[339673551,1727830239675,-166.24,0.00025347,2]
[339673552,1727830239685,-200.0,0.000257,11]
[339673553,1727830239695,-2329.22088665,0.00026455,2]
[339673554,1727830239705,-278.24,0.00026472,2]
[339673555,1727830239715,-200.0,0.000267,11]
[339673556,1727830239725,-160.45,0.00026712,2]
[339673557,1727830239734,-500.0,0.00026878,120]
[339673558,1727830239744,-500.0,0.00027167,2]
[339673559,1727830239754,-1000.0,0.000274,2]
[339673560,1727830239764,-4511.59286102,0.00027425,2]
[339673561,1727830239774,-200.0,0.000277,12]
[339673562,1727830239784,-700.0,0.00028,80]
[339673563,1727830239793,-4000.0,0.00028089,2]
[339673564,1727830239804,-151.0,0.0002838,7]
[339673565,1727830239815,-151.0,0.0002838,7]
[339673566,1727830239826,-219.728738,0.0002838,7]
[339673567,1727830239836,-219.728738,0.0002838,7]
[339673568,1727830239848,-151.0,0.0002838,7]
[339673569,1727830239859,-151.77879,0.0002838,7]
[339673570,1727830239869,-293.533543,0.0002838,7]
[339673571,1727830239879,-293.533543,0.0002838,7]
[339673572,1727830239889,-347.8425,0.0002838,7]
[339673573,1727830239898,-347.8425,0.0002838,7]
[339673574,1727830239908,-31897.5665973,0.0002839,4]
[339673575,1727830239917,-12675.6470911,0.0002839,4]
[339673576,1727830239927,-151.0,0.00028394,7]
[339673577,1727830239936,-152.426396,0.00028394,7]
[339673578,1727830239946,-151.0,0.00028394,7]
[339673579,1727830239955,-151.0,0.00028394,7]
[339673580,1727830239965,-151.0,0.00028394,7]
[339673581,1727830239974,-258.961506,0.00028394,7]
[339673582,1727830239984,-441.656179,0.00028394,7]
[339673583,1727830239993,-441.656179,0.00028394,7]
[339673584,1727830240002,-501.901168,0.00028394,7]
[339673585,1727830240012,-501.901168,0.00028394,7]
[339673586,1727830240021,-151.0,0.00028394,7]
[339673587,1727830240031,-151.0,0.00028394,7]
[339673588,1727830240040,-151.0,0.00028394,7]
[339673589,1727830240050,-151.0,0.00028394,7]
[339673590,1727830240059,-151.0,0.00028394,7]
[339673591,1727830240069,-386.75,0.00028394,7]
[339673592,1727830240078,-386.75,0.00028394,7]
[339673593,1727830240088,-151.0,0.00028394,7]
[339673594,1727830240097,-151.0,0.00028394,7]
[339673595,1727830240107,-151.0,0.00028394,7]
[339673596,1727830240116,-151.0,0.00028394,7]
[339673597,1727830240126,-151.0,0.00028394,7]
[339673598,1727830240135,-151.0,0.00028394,7]
[339673599,1727830240144,-151.0,0.00028394,7]
[339673600,1727830240154,-151.0,0.00028394,7]
[339673601,1727830240164,-151.0,0.00028394,7]
[339673602,1727830240174,-151.0,0.00028394,7]
[339673603,1727830240184,-151.0,0.00028394,7]
[339673604,1727830240193,-151.0,0.00028394,7]
[339673605,1727830240202,-151.0,0.00028394,7]
[339673606,1727830240211,-252.438567,0.00028394,7]
[339673607,1727830240220,-183.831632,0.00028394,7]
[339673608,1727830240230,-252.438567,0.00028394,7]
[339673609,1727830240239,-183.831632,0.00028394,7]
[339673610,1727830240248,-151.0,0.00028394,7]
[339673611,1727830240257,-151.0,0.00028394,7]
[339673613,1727830240266,-1088.0,0.00028425,30]
[339673615,1727830240276,-200.0,0.00028425,30]
[339673617,1727830240286,-200.0,0.00028425,30]
[339673618,1727830240295,-200.0,0.00028425,30]
[339673620,1727830240304,-200.0,0.00028425,30]
[339673621,1727830240314,-200.0,0.00028425,30]
[339673622,1727830240323,-200.0,0.00028425,30]
[339673624,1727830240332,-200.0,0.00028425,30]
[339673625,1727830240342,-200.0,0.00028425,30]
[339673626,1727830240351,-200.0,0.00028425,30]
[339673627,1727830240360,-200.0,0.00028425,30]
[339673628,1727830240369,-200.0,0.00028425,30]
[339673629,1727830240378,-200.0,0.00028425,30]
[339673630,1727830240387,-200.0,0.00028425,30]
[339673631,1727830240397,-200.0,0.00028425,30]
[339673632,1727830240406,-200.0,0.00028425,30]
[339673633,1727830240417,-200.0,0.00028425,30]
[339673634,1727830240427,-585.1,0.00028425,30]
[339673635,1727830240436,-150.0,0.00028442,120]
[339673636,1727830240445,-200.0,0.000287,13]
[339673637,1727830240454,-278.24,0.00028736,2]
[339673638,1727830240464,-500.0,0.00028767,120]
[339673639,1727830240473,-161.91,0.00028963,2]
[339673640,1727830240482,-500.0,0.00029056,120]
[339673641,1727830240492,-958.0,0.00029277,2]
[339673642,1727830240504,-754.17,0.00029277,2]
[339673643,1727830240513,-754.17,0.00029277,2]
[339673644,1727830240523,-754.17,0.00029277,2]
[339673645,1727830240532,-754.17,0.00029277,2]
[339673646,1727830240542,-150.0,0.00029294,120]
[339673647,1727830240551,-2000.0,0.00029556,120]
[339673648,1727830240560,-159.558688,0.00029556,7]
[339673649,1727830240570,-159.558688,0.00029556,7]
[339673650,1727830240579,-423.692753,0.00029556,7]
[339673651,1727830240590,-423.692753,0.00029556,7]
[339673652,1727830240599,-1048.591812,0.00029556,7]
[339673653,1727830240609,-1048.591812,0.00029556,7]
[339673654,1727830240624,-2329.22088665,0.00029566,15]
[339673655,1727830240633,-150.0,0.00029648,120]
[339673656,1727830240643,-11891.37510423,0.000297,2]
[339673657,1727830240653,-200.0,0.000297,14]
[339673658,1727830240668,-152.0,0.00029809,3]
[339673659,1727830240677,-358.38,0.00029962,2]
[339673660,1727830240687,-358.38,0.00029962,2]
[339673661,1727830240699,-358.38,0.00029962,2]
[339673662,1727830240708,-428.61,0.00029962,2]
[339673663,1727830240718,-150.0,0.00029962,2]
[339673664,1727830240727,-150.0,0.00029962,2]
[339673665,1727830240736,-357.86,0.00029962,2]
[339673666,1727830240745,-1065.07,0.00029972,120]
[339673667,1727830240754,-4032.52,0.00029972,120]
[339673668,1727830241128,-825.0,0.0003,30]
[339673669,1727830241137,-1000.0,0.0003,11]
[339673670,1727830241146,-1000.0,0.0003,11]
[339673671,1727830241155,-1000.0,0.0003,11]
[339673672,1727830241165,-1000.0,0.0003,11]
[339673673,1727830241175,-1000.0,0.0003,11]
[339673674,1727830241184,-558.91521487,0.0003,11]
[339673675,1727830241194,-151.0,0.0003,7]
[339673676,1727830241204,-151.0,0.0003,7]
[339673677,1727830241215,-151.0,0.0003,7]
[339673678,1727830241224,-159.318714,0.0003,7]
[339673679,1727830241236,-151.0,0.0003,7]
[339673680,1727830241245,-159.318714,0.0003,7]
[339673681,1727830241256,-500.0,0.00030056,120]
[339673682,1727830241266,-200.0,0.00030056,120]
[339673683,1727830241275,-150.0,0.00030096,120]
[339673684,1727830241284,-150.0,0.00030148,120]
[339673685,1727830241294,-12675.6470911,0.00030167,5]
[339673686,1727830241303,-7500.0,0.00030177,2]
[339673687,1727830241312,-668.98,0.00030236,2]
[339673688,1727830241323,-31897.5665973,0.00030337,5]
[339673689,1727830241334,-12675.6470911,0.00030337,5]
[339673690,1727830241343,-151.0,0.00030347,7]
[339673691,1727830241352,-151.0,0.00030347,7]
[339673692,1727830241362,-151.0,0.00030347,7]
[339673693,1727830241371,-213.609554,0.00030347,7]
[339673694,1727830241381,-151.0,0.00030347,7]
[339673695,1727830241390,-151.0,0.00030347,7]
[339673696,1727830241400,-151.0,0.00030347,7]
[339673697,1727830241410,-151.0,0.00030347,7]
[339673698,1727830241419,-151.0,0.00030347,7]
[339673699,1727830241429,-151.0,0.00030347,7]
[339673700,1727830241438,-151.0,0.00030347,7]
[339673701,1727830241447,-252.438567,0.00030347,7]
[339673702,1727830241456,-183.831632,0.00030347,7]
[339673703,1727830241466,-252.438567,0.00030347,7]
[339673704,1727830241476,-183.831632,0.00030347,7]
[339673705,1727830241485,-151.0,0.00030347,7]
[339673706,1727830241495,-151.0,0.00030347,7]
[339673707,1727830241505,-151.0,0.00030358,7]
[339673708,1727830241514,-151.0,0.00030358,7]
[339673709,1727830241523,-151.0,0.00030358,7]
[339673710,1727830241532,-386.75,0.00030358,7]
[339673711,1727830241542,-386.75,0.00030358,7]
[339673712,1727830241551,-151.0,0.00030358,7]
[339673713,1727830241561,-151.0,0.00030358,7]
[339673714,1727830241570,-12675.6470911,0.00030363,5]
[339673715,1727830241579,-151.0,0.00030363,7]
[339673716,1727830241588,-151.0,0.00030363,7]
[339673717,1727830241598,-154.497896,0.00030363,7]
[339673718,1727830241607,-151.0,0.00030363,7]
[339673719,1727830241621,-441.656179,0.00030363,7]
[339673720,1727830241631,-441.656179,0.00030363,7]
[339673721,1727830241640,-501.901168,0.00030363,7]
[339673722,1727830241649,-501.901168,0.00030363,7]
[339673723,1727830241659,-151.0,0.00030363,7]
[339673724,1727830241670,-151.0,0.00030363,7]
[339673725,1727830241680,-1048.591812,0.00030363,7]
[339673726,1727830241690,-1048.591812,0.00030363,7]
[339673727,1727830241699,-151.0,0.00030367,7]
[339673728,1727830241708,-151.0,0.00030367,7]
[339673729,1727830241717,-151.0,0.00030367,7]
[339673730,1727830241726,-159.318714,0.00030367,7]
[339673731,1727830241736,-151.0,0.00030367,7]
[339673732,1727830241745,-159.318714,0.00030367,7]
[339673733,1727830241754,-12675.6470911,0.00030367,5]
[339673734,1727830241763,-151.0,0.00030373,7]
[339673735,1727830241772,-151.0,0.00030373,7]
[339673736,1727830241782,-219.728738,0.00030373,7]
[339673737,1727830241791,-219.728738,0.00030373,7]
[339673738,1727830241800,-151.0,0.00030373,7]
[339673739,1727830241809,-293.533543,0.00030373,7]
[339673740,1727830241819,-293.533543,0.00030373,7]
[339673741,1727830241829,-347.8425,0.00030373,7]
[339673742,1727830241838,-347.8425,0.00030373,7]
[339673743,1727830241848,-159.558688,0.00030377,7]
[339673744,1727830241857,-159.558688,0.00030377,7]
[339673745,1727830241867,-423.692753,0.00030377,7]
[339673746,1727830241876,-423.692753,0.00030377,7]
[339673747,1727830241886,-28986.03494668,0.00030377,5]
[339673748,1727830241895,-1065.07,0.00030383,120]
[339673749,1727830241905,-4032.52,0.00030383,120]
[339673750,1727830241915,-500.0,0.00030656,120]
[339673751,1727830241924,-2000.0,0.00030656,120]
[339673752,1727830241934,-500.0,0.00030656,120]
[339673753,1727830241945,-500.0,0.00030656,120]
[339673754,1727830241955,-200.0,0.00030656,120]
[339673755,1727830241964,-200.0,0.000307,15]
[339673756,1727830241974,-620.70870109,0.000307,2]
[339673757,1727830241984,-150.0,0.0003074,120]
[339673758,1727830241994,-150.0,0.00030784,2]
[339673759,1727830242003,-428.1,0.00030784,2]
[339673760,1727830242013,-150.0,0.00030784,2]
[339673761,1727830242022,-150.0,0.00030784,2]
[339673762,1727830242033,-150.0,0.00030784,2]
[339673763,1727830242042,-31897.5665973,0.0003079,5]
[339673764,1727830242052,-12675.6470911,0.0003079,5]
[339673765,1727830242062,-1048.591812,0.0003079,7]
[339673766,1727830242072,-1048.591812,0.0003079,7]
[339673767,1727830242081,-1065.07,0.00030794,120]
[339673768,1727830242092,-4032.52,0.00030794,120]
[339673769,1727830242103,-4500.0,0.000308,11]
[339673770,1727830242114,-151.0,0.000308,7]
[339673771,1727830242125,-151.0,0.000308,7]
[339673772,1727830242135,-151.0,0.000308,7]
[339673773,1727830242146,-159.318714,0.000308,7]
[339673774,1727830242157,-151.0,0.000308,7]
[339673775,1727830242166,-159.318714,0.000308,7]
[339673776,1727830242175,-619.47347584,0.00030829,2]
[339673777,1727830242184,-644.01184594,0.00030829,2]
[339673778,1727830242194,-695.32022394,0.00030829,2]
[339673779,1727830242203,-1000.69057381,0.00030829,6]
[339673780,1727830242211,-242.70455745,0.00030829,2]
[339673781,1727830242221,-12675.6470911,0.00030889,5]
[339673782,1727830242233,-12675.6470911,0.00030889,5]
[339673783,1727830242243,-63795.1331947,0.00030889,5]
[339673784,1727830242252,-50702.5883646,0.00030889,5]
[339673785,1727830242262,-151.0,0.0003089,7]
[339673786,1727830242271,-151.0,0.0003089,7]
[339673787,1727830242280,-151.0,0.0003089,7]
[339673788,1727830242289,-159.318714,0.0003089,7]
[339673789,1727830242299,-151.0,0.0003089,7]
[339673790,1727830242308,-159.318714,0.0003089,7]
[339673791,1727830242319,-1048.591812,0.0003089,7]
[339673792,1727830242330,-1048.591812,0.0003089,7]
[339673793,1727830242340,-151.0,0.00030899,7]
[339673794,1727830242349,-151.0,0.00030899,7]
[339673795,1727830242361,-151.0,0.00030899,7]
[339673796,1727830242372,-293.20649,0.00030899,7]
[339673797,1727830242381,-151.0,0.00030899,7]
[339673798,1727830242392,-151.0,0.00030899,7]
[339673799,1727830242402,-151.0,0.00030899,7]
[339673800,1727830242412,-386.75,0.00030899,7]
[339673801,1727830242421,-386.75,0.00030899,7]
[339673802,1727830242431,-386.75,0.00030899,7]
[339673803,1727830242443,-386.75,0.00030899,7]
[339673804,1727830242455,-151.0,0.00030899,7]
[339673805,1727830242465,-151.0,0.00030899,7]
[339673806,1727830242474,-151.0,0.00030899,7]
[339673807,1727830242484,-151.0,0.00030899,7]
[339673808,1727830242494,-151.0,0.00030899,7]
[339673809,1727830242505,-151.0,0.00030899,7]
[339673810,1727830242515,-151.0,0.00030899,7]
[339673811,1727830242526,-151.0,0.00030899,7]
[339673812,1727830242535,-151.0,0.00030899,7]
[339673813,1727830242545,-151.0,0.00030899,7]
[339673814,1727830242556,-151.0,0.00030899,7]
[339673815,1727830242565,-151.0,0.00030899,7]
[339673816,1727830242574,-284.02874,0.00030899,7]
[339673817,1727830242583,-151.0,0.00030899,7]
[339673818,1727830242594,-151.0,0.00030899,7]
[339673819,1727830242604,-151.0,0.00030899,7]
[339673820,1727830242615,-151.0,0.00030899,7]
[339673821,1727830242627,-151.0,0.00030899,7]
[339673822,1727830242638,-290.518615,0.00030899,7]
[339673823,1727830242647,-252.438567,0.00030899,7]
[339673824,1727830242659,-252.438567,0.00030899,7]
[339673825,1727830242668,-183.831632,0.00030899,7]
[339673826,1727830242678,-183.831632,0.00030899,7]
[339673827,1727830242688,-252.438567,0.00030899,7]
[339673828,1727830242697,-252.438567,0.00030899,7]
[339673829,1727830242708,-183.831632,0.00030899,7]
[339673830,1727830242719,-183.831632,0.00030899,7]
[339673831,1727830242730,-151.0,0.00030899,7]
[339673832,1727830242740,-151.0,0.00030899,7]
[339673833,1727830242750,-151.0,0.00030899,7]
[339673834,1727830242760,-151.0,0.00030899,7]
[339673835,1727830242769,-159.558688,0.00030899,7]
[339673836,1727830242779,-159.558688,0.00030899,7]
[339673837,1727830242788,-423.692753,0.00030899,7]
[339673838,1727830242798,-423.692753,0.00030899,7]
[339673839,1727830242807,-6000.0,0.000309,11]
[339673840,1727830242817,-151.0,0.00030909,7]
[339673841,1727830242826,-151.0,0.00030909,7]
[339673842,1727830242836,-151.0,0.00030909,7]
[339673843,1727830242845,-386.75,0.00030909,7]
[339673844,1727830242854,-386.75,0.00030909,7]
[339673845,1727830242864,-151.0,0.00030909,7]
[339673846,1727830242873,-151.0,0.00030909,7]
[339673847,1727830242883,-151.0,0.00030909,7]
[339673848,1727830242892,-151.0,0.00030909,7]
[339673849,1727830242902,-151.0,0.00030909,7]
[339673850,1727830242912,-151.0,0.00030909,7]
[339673851,1727830242922,-151.0,0.00030909,7]
[339673852,1727830242931,-252.438567,0.00030909,7]
[339673853,1727830242942,-183.831632,0.00030909,7]
[339673854,1727830242952,-252.438567,0.00030909,7]
[339673855,1727830242962,-183.831632,0.00030909,7]
[339673856,1727830242971,-173.940668,0.00030909,7]
[339673857,1727830242981,-207.99454,0.00030909,7]
[339673858,1727830242990,-151.0,0.00030909,7]
[339673859,1727830243000,-151.0,0.00030909,7]
[339673860,1727830243010,-155.556983,0.00030909,7]
[339673861,1727830243019,-151.0,0.00030909,7]
[339673862,1727830243029,-228.951788,0.00030909,7]
[339673863,1727830243038,-159.318714,0.00030909,7]
[339673865,1727830243048,-159.318714,0.00030909,7]
[339673866,1727830243057,-152.54242,0.00030909,7]
[339673867,1727830243067,-159.318714,0.00030909,7]
[339673868,1727830243076,-159.318714,0.00030909,7]
[339673869,1727830243085,-1048.591812,0.00030909,7]
[339673870,1727830243095,-1048.591812,0.00030909,7]
[339673871,1727830243104,-1048.591812,0.00030909,7]
[339673872,1727830243113,-1048.591812,0.00030909,7]
[339673873,1727830243123,-223282.966181,0.00030909,5]
[339673874,1727830243132,-215486.000549,0.00030909,5]
[339673875,1727830243141,-150.0,0.0003091,120]
[339673876,1727830243151,-151.0,0.00030919,7]
[339673877,1727830243160,-151.0,0.00030919,7]
[339673878,1727830243170,-151.0,0.00030919,7]
[339673879,1727830243180,-151.0,0.00030919,7]
[339673880,1727830243190,-163.668299,0.00030919,7]
[339673881,1727830243201,-441.656179,0.00030919,7]
[339673882,1727830243211,-441.656179,0.00030919,7]
[339673883,1727830243223,-441.656179,0.00030919,7]
[339673884,1727830243235,-441.656179,0.00030919,7]
[339673885,1727830243244,-501.901168,0.00030919,7]
[339673886,1727830243253,-501.901168,0.00030919,7]
[339673887,1727830243263,-501.901168,0.00030919,7]
[339673888,1727830243272,-501.901168,0.00030919,7]
[339673889,1727830243282,-151.0,0.00030919,7]
[339673890,1727830243293,-151.0,0.00030919,7]
[339673891,1727830243303,-151.0,0.00030919,7]
[339673892,1727830243314,-151.0,0.00030919,7]
[339673893,1727830243324,-151.0,0.00030919,7]
[339673894,1727830243334,-151.0,0.00030919,7]
[339673895,1727830243345,-151.0,0.00030919,7]
[339673896,1727830243354,-386.75,0.00030919,7]
[339673897,1727830243364,-386.75,0.00030919,7]
[339673898,1727830243373,-151.0,0.00030919,7]
[339673899,1727830243383,-151.0,0.00030919,7]
[339673900,1727830243392,-151.0,0.00030919,7]
[339673902,1727830243401,-164.119861,0.00030919,7]
[339673904,1727830243412,-151.0,0.00030919,7]
[339673906,1727830243422,-151.0,0.00030919,7]
[339673908,1727830243432,-252.438567,0.00030919,7]
[339673910,1727830243441,-183.831632,0.00030919,7]
[339673911,1727830243451,-252.438567,0.00030919,7]
[339673912,1727830243461,-183.831632,0.00030919,7]
[339673913,1727830243471,-159.558688,0.00030919,7]
[339673914,1727830243480,-159.558688,0.00030919,7]
[339673915,1727830243490,-423.692753,0.00030919,7]
[339673919,1727830243586,-423.692753,0.00030919,7]
[339673921,1727830243595,-151.0,0.00030919,7]
[339673922,1727830243605,-151.0,0.00030919,7]
[339673923,1727830243615,-159.318714,0.00030919,7]
[339673924,1727830243626,-159.318714,0.00030919,7]
[339673925,1727830243635,-159.318714,0.00030919,7]
[339673926,1727830243645,-159.318714,0.00030919,7]
[339673927,1727830243653,-1048.591812,0.00030919,7]
[339673928,1727830243665,-1048.591812,0.00030919,7]
[339673929,1727830243679,-1048.591812,0.00030919,7]
[339673930,1727830243688,-1048.591812,0.00030919,7]
[339673931,1727830243701,-223282.966181,0.00030919,5]
[339673932,1727830243711,-240837.294732,0.00030919,5]
[339673933,1727830243720,-151.0,0.00030929,7]
[339673934,1727830243728,-151.0,0.00030929,7]
[339673935,1727830243738,-219.728738,0.00030929,7]
[339673936,1727830243747,-219.728738,0.00030929,7]
[339673937,1727830243757,-151.0,0.00030929,7]
[339673938,1727830243766,-293.533543,0.00030929,7]
[339673939,1727830243776,-293.533543,0.00030929,7]
[339673940,1727830243786,-347.8425,0.00030929,7]
[339673941,1727830243796,-347.8425,0.00030929,7]
[339673942,1727830243806,-151.0,0.00030929,7]
[339673943,1727830243815,-151.0,0.00030929,7]
[339673944,1727830243825,-441.656179,0.00030929,7]
[339673945,1727830243834,-441.656179,0.00030929,7]
[339673946,1727830243843,-501.901168,0.00030929,7]
[339673947,1727830243853,-501.901168,0.00030929,7]
[339673948,1727830243861,-151.0,0.00030929,7]
[339673949,1727830243870,-151.0,0.00030929,7]
[339673950,1727830243880,-507159.68717593,0.00030929,2]
[339673951,1727830244529,-193207.48524376,0.00030929,2]
[339673952,1727830244540,-71717.23475919,0.00030929,2]
[339673953,1727830244551,-663.36081625,0.00030929,2]
[339673954,1727830244563,-2695.0,0.00030929,2]
[339673955,1727830244897,-702.36484713,0.00030929,2]
[339673956,1727830244920,-701.94767542,0.00030929,2]
[339673957,1727830244932,-542.84460224,0.00030929,2]
[339673958,1727830244943,-1234.08700396,0.00030929,2]
[339673959,1727830244955,-725.0,0.00030929,2]
[339673960,1727830244971,-335.64871007,0.00030929,2]
[339673962,1727830245998,-150.0,0.00029962,2]
[339673963,1727830246007,-6389.8333,0.00030929,2]
[339673964,1727830246034,-1965.0,0.00030929,2]
[339673965,1727830246045,-309.42654294,0.00030929,2]
[339673966,1727830246138,-255.40230074,0.00029962,2]
[339673967,1727830246150,-173.20769926,0.00029962,2]
[339673968,1727830246159,-150.0,0.00029962,2]
[339673969,1727830246170,-371.44752314,0.00030929,2]
[339674011,1727830477953,150.0,0.0001048,2]
[339674012,1727830760922,200.0,0.00022,120]
[339674013,1727830798342,200.0,0.00022,120]
[339674014,1727830856580,150.0,0.0001,2]
[339674017,1727831207222,583.21135,0.00022,120]
[339674018,1727831432207,-247.5158,0.00010898,2]
[339674019,1727831432217,-157.69,0.00010959,2]
[339674020,1727831432227,-162.96,0.00010959,2]
[339674021,1727831432236,-250.0,0.00011,2]
[339674022,1727831432247,-302.32,0.00011,2]
[339674023,1727831432256,-208.79822773,0.00011,2]
[339674024,1727831432268,-425.65398212,0.00011,2]
[339674025,1727831432280,-380.08779015,0.00011,2]
[339674026,1727831432291,-150.0,0.000126,2]
[339674027,1727831432300,-300.0,0.00013,2]
[339674028,1727831432310,-350.0,0.00015,2]
[339674029,1727831432320,-260.35106448,0.00017,2]
[339674030,1727831432332,-139.64893552,0.00017,2]
[339674031,1727831432341,-300.0,0.00017899,2]
[339674032,1727831432351,-300.0,0.00017899,2]
[339674033,1727831432360,-226.26,0.000179,7]
[339674034,1727831432370,-2365.97108847,0.000179,2]
[339674035,1727831432481,-387.17470319,0.000179,2]
[339674036,1727831432493,-2195.73008022,0.000179,2]
[339674037,1727831432508,-706.11031433,0.000179,2]
[339674038,1727831432531,-2456.7,0.000179,2]
[339674039,1727831432547,-1396.35356278,0.000179,2]